[Event "*** Titled Tuesday Blitz"]
[Site "Chess.com"]
[Date "2020.04.14"]
[Round "2"]
[White "adiosabu"]
[Black "almatyonelove"]
[Result "1-0"]
[WhiteElo "2523"]
[BlackElo "2699"]
[TimeControl "180+1"]
[EndTime "10:18:31 PDT"]
[Termination "adiosabu won by resignation"]

1. e4 {[%clk 0:03:00.9]} 1... e5 {[%clk 0:02:56.9]} 2. Nf3 {[%clk 0:02:56.9]}
2... Nc6 {[%clk 0:02:57.3]} 3. Bb5 {[%clk 0:02:56.4]} 3... a6 {[%clk 0:02:56.9]}
4. Ba4 {[%clk 0:02:56.3]} 4... Nf6 {[%clk 0:02:57.3]} 5. O-O {[%clk 0:02:55.7]}
5... Be7 {[%clk 0:02:56.1]} 6. d3 {[%clk 0:02:54.3]} 6... b5 {[%clk 0:02:53.7]}
7. Bb3 {[%clk 0:02:54.3]} 7... O-O {[%clk 0:02:54.2]} 8. Nc3 {[%clk 0:02:53.7]}
8... d6 {[%clk 0:02:53.6]} 9. a3 {[%clk 0:02:53.7]} 9... Bb7 {[%clk 0:02:51]}
10. Ba2 {[%clk 0:02:38.2]} 10... Nd7 {[%clk 0:02:47.6]} 11. Nd5 {[%clk
0:02:34.5]} 11... Nc5 {[%clk 0:02:47.4]} 12. b4 {[%clk 0:02:28.4]} 12... Ne6
{[%clk 0:02:47.3]} 13. c3 {[%clk 0:02:28.2]} 13... Nb8 {[%clk 0:02:44.9]} 14. d4
{[%clk 0:02:15.6]} 14... Nd7 {[%clk 0:02:43.8]} 15. h3 {[%clk 0:02:10.4]} 15...
Re8 {[%clk 0:02:31.4]} 16. Nxe7+ {[%clk 0:01:57.4]} 16... Qxe7 {[%clk
0:02:30.8]} 17. d5 {[%clk 0:01:55.3]} 17... Nef8 {[%clk 0:02:30]} 18. c4 {[%clk
0:01:54.5]} 18... Ng6 {[%clk 0:02:27.2]} 19. Bg5 {[%clk 0:01:52.5]} 19... f6
{[%clk 0:02:26.1]} 20. Be3 {[%clk 0:01:51.8]} 20... Rf8 {[%clk 0:02:25.3]} 21.
Qc2 {[%clk 0:01:48.9]} 21... Rac8 {[%clk 0:02:09.3]} 22. cxb5 {[%clk 0:01:43.9]}
22... axb5 {[%clk 0:02:08.6]} 23. Qd3 {[%clk 0:01:42.7]} 23... f5 {[%clk
0:02:01.8]} 24. Qxb5 {[%clk 0:01:39.1]} 24... fxe4 {[%clk 0:01:59.1]} 25. Ng5
{[%clk 0:01:38.9]} 25... Ba8 {[%clk 0:01:54.3]} 26. Nxe4 {[%clk 0:01:22.9]}
26... h6 {[%clk 0:01:52.8]} 27. Rac1 {[%clk 0:01:20.8]} 27... Nf4 {[%clk
0:01:43.6]} 28. f3 {[%clk 0:01:12.4]} 28... Kh8 {[%clk 0:01:39.9]} 29. Kh2
{[%clk 0:01:11.1]} 29... Nf6 {[%clk 0:01:34]} 30. Bxf4 {[%clk 0:01:08.8]} 30...
exf4 {[%clk 0:01:33.6]} 31. Nxf6 {[%clk 0:01:00.2]} 31... Qxf6 {[%clk
0:01:33.1]} 32. Bb1 {[%clk 0:00:59.4]} 32... Qg5 {[%clk 0:00:49.7]} 33. Rfd1
{[%clk 0:00:57.7]} 33... g6 {[%clk 0:00:41.1]} 34. Qd7 {[%clk 0:00:48.7]} 34...
Bxd5 {[%clk 0:00:32.6]} 35. Rxd5 {[%clk 0:00:46]} 35... Qxd5 {[%clk 0:00:31.8]}
36. Bxg6 {[%clk 0:00:45.3]} 36... Qg8 {[%clk 0:00:31.5]} 37. Be4 {[%clk
0:00:41.7]} 37... Qg7 {[%clk 0:00:15.5]} 38. Qe6 {[%clk 0:00:35.8]} 38... Rg8
{[%clk 0:00:14.3]} 39. Rc2 {[%clk 0:00:33.8]} 39... Rce8 {[%clk 0:00:14.7]} 40.
Qf5 {[%clk 0:00:33.1]} 40... Ref8 {[%clk 0:00:12.6]} 41. Qb5 {[%clk 0:00:24.4]}
41... Qg3+ {[%clk 0:00:12.6]} 42. Kh1 {[%clk 0:00:23.6]} 42... Rg5 {[%clk
0:00:12.2]} 43. Qd7 {[%clk 0:00:20.4]} 43... Rg7 {[%clk 0:00:10.9]} 44. Qe6
{[%clk 0:00:19.4]} 44... Qg5 {[%clk 0:00:08.7]} 45. Kg1 {[%clk 0:00:17.3]} 45...
Re7 {[%clk 0:00:07.4]} 46. Qc4 {[%clk 0:00:16.2]} 46... Rd8 {[%clk 0:00:06.1]}
47. Qd4+ {[%clk 0:00:14.9]} 47... Qe5 {[%clk 0:00:05.7]} 48. Qd3 {[%clk
0:00:15.1]} 48... d5 {[%clk 0:00:05.2]} 49. Rc5 {[%clk 0:00:13.3]} 49... Qa1+
{[%clk 0:00:04.7]} 50. Kh2 {[%clk 0:00:12.4]} 50... dxe4 {[%clk 0:00:05.1]} 51.
Qxd8+ {[%clk 0:00:11.7]} 1-0

[Event "*** Titled Tuesday Blitz"]
[Site "Chess.com"]
[Date "2020.04.14"]
[Round "2"]
[White "Efremov_Vlad"]
[Black "profofchess"]
[Result "0-1"]
[WhiteElo "2113"]
[BlackElo "2403"]
[TimeControl "180+1"]
[EndTime "10:18:32 PDT"]
[Termination "profofchess won on time"]

1. d4 {[%clk 0:02:57.2]} 1... Nf6 {[%clk 0:02:59.4]} 2. c4 {[%clk 0:02:53.4]}
2... c5 {[%clk 0:02:59.3]} 3. d5 {[%clk 0:02:51.8]} 3... e6 {[%clk 0:02:59.4]}
4. Nf3 {[%clk 0:02:45.5]} 4... exd5 {[%clk 0:03:00.3]} 5. cxd5 {[%clk
0:02:44.7]} 5... d6 {[%clk 0:03:01.2]} 6. Nc3 {[%clk 0:02:43.6]} 6... g6 {[%clk
0:03:01.4]} 7. Bf4 {[%clk 0:02:43.3]} 7... a6 {[%clk 0:03:01.6]} 8. a4 {[%clk
0:02:42.1]} 8... Bg7 {[%clk 0:03:01.6]} 9. h3 {[%clk 0:02:40.9]} 9... O-O {[%clk
0:03:00.8]} 10. e3 {[%clk 0:02:39.1]} 10... Qe7 {[%clk 0:03:00.8]} 11. Be2
{[%clk 0:02:37.7]} 11... Nbd7 {[%clk 0:02:59.7]} 12. O-O {[%clk 0:02:34.1]}
12... Ne8 {[%clk 0:02:59.1]} 13. Nd2 {[%clk 0:02:32.8]} 13... Ne5 {[%clk
0:02:58.6]} 14. Bh2 {[%clk 0:02:31.6]} 14... f5 {[%clk 0:02:57.1]} 15. Qc2
{[%clk 0:02:26.1]} 15... Rb8 {[%clk 0:02:50.4]} 16. a5 {[%clk 0:02:20.7]} 16...
Bd7 {[%clk 0:02:39.5]} 17. Rfe1 {[%clk 0:02:14]} 17... Nc7 {[%clk 0:02:38.2]}
18. f4 {[%clk 0:02:13]} 18... Nf7 {[%clk 0:02:31.2]} 19. Bf3 {[%clk 0:02:09.1]}
19... Nb5 {[%clk 0:01:26.9]} 20. Nxb5 {[%clk 0:01:57.3]} 20... Bxb5 {[%clk
0:01:27.8]} 21. e4 {[%clk 0:01:52.8]} 21... Bd4+ {[%clk 0:01:10.1]} 22. Kh1
{[%clk 0:01:49.7]} 22... Qf6 {[%clk 0:01:11]} 23. Nb3 {[%clk 0:01:36.8]} 23...
fxe4 {[%clk 0:00:58.1]} 24. Nxd4 {[%clk 0:01:31.1]} 24... exf3 {[%clk
0:00:55.9]} 25. Nxf3 {[%clk 0:01:29.8]} 25... Rfe8 {[%clk 0:00:53.4]} 26. Qd2
{[%clk 0:01:22.4]} 26... Bc4 {[%clk 0:00:27]} 27. Rac1 {[%clk 0:01:08.1]} 27...
Bb3 {[%clk 0:00:22.4]} 28. Rc3 {[%clk 0:01:03.4]} 28... Ba4 {[%clk 0:00:20.7]}
29. b3 {[%clk 0:00:59.4]} 29... Bb5 {[%clk 0:00:20.2]} 30. Rce3 {[%clk 0:00:59]}
30... Rxe3 {[%clk 0:00:19.9]} 31. Rxe3 {[%clk 0:00:55.2]} 31... Re8 {[%clk
0:00:20.3]} 32. Rxe8+ {[%clk 0:00:47.9]} 32... Bxe8 {[%clk 0:00:21.2]} 33. Qe1
{[%clk 0:00:45.6]} 33... Bb5 {[%clk 0:00:20.9]} 34. Qe6 {[%clk 0:00:32.3]} 34...
Kg7 {[%clk 0:00:17.9]} 35. Qxf6+ {[%clk 0:00:18.2]} 35... Kxf6 {[%clk
0:00:17.5]} 36. g4 {[%clk 0:00:17.1]} 36... Bd3 {[%clk 0:00:13.2]} 37. Nd2
{[%clk 0:00:10.7]} 37... Bc2 {[%clk 0:00:09.9]} 38. Kg1 {[%clk 0:00:10.2]} 38...
Ke7 {[%clk 0:00:09.1]} 39. Kf2 {[%clk 0:00:10.2]} 39... Kd7 {[%clk 0:00:08.6]}
40. Ke3 {[%clk 0:00:09.9]} 40... Kc7 {[%clk 0:00:08.8]} 41. Bg3 {[%clk
0:00:09.7]} 41... b6 {[%clk 0:00:07.4]} 42. axb6+ {[%clk 0:00:08]} 42... Kxb6
{[%clk 0:00:08.3]} 43. Bh4 {[%clk 0:00:06.5]} 43... Kc7 {[%clk 0:00:06.9]} 44.
Bf6 {[%clk 0:00:03.3]} 44... Kb6 {[%clk 0:00:04.7]} 45. Be7 {[%clk 0:00:01.5]}
45... Kb5 {[%clk 0:00:04.7]} 46. f5 {[%clk 0:00:01.7]} 46... gxf5 {[%clk
0:00:04.5]} 0-1

[Event "*** Titled Tuesday Blitz"]
[Site "Chess.com"]
[Date "2020.04.14"]
[Round "2"]
[White "Chessmasterzt"]
[Black "kekic76"]
[Result "1-0"]
[WhiteElo "2542"]
[BlackElo "2285"]
[TimeControl "180+1"]
[EndTime "10:18:33 PDT"]
[Termination "Chessmasterzt won by resignation"]

1. d4 {[%clk 0:03:00.9]} 1... Nf6 {[%clk 0:02:59]} 2. Nf3 {[%clk 0:03:01.8]}
2... e6 {[%clk 0:02:57.4]} 3. g3 {[%clk 0:03:00.5]} 3... d5 {[%clk 0:02:57.2]}
4. Bg2 {[%clk 0:03:01.4]} 4... c5 {[%clk 0:02:57.5]} 5. c4 {[%clk 0:03:01]} 5...
Nc6 {[%clk 0:02:55.8]} 6. O-O {[%clk 0:02:58.9]} 6... dxc4 {[%clk 0:02:52.5]} 7.
dxc5 {[%clk 0:02:57.5]} 7... Qxd1 {[%clk 0:02:51]} 8. Rxd1 {[%clk 0:02:58.4]}
8... Bxc5 {[%clk 0:02:51]} 9. Nfd2 {[%clk 0:02:54.2]} 9... Na5 {[%clk
0:02:47.1]} 10. Na3 {[%clk 0:02:53.1]} 10... Bxa3 {[%clk 0:02:45]} 11. bxa3
{[%clk 0:02:54]} 11... Bd7 {[%clk 0:02:39.9]} 12. Bb2 {[%clk 0:02:48.1]} 12...
O-O {[%clk 0:02:24]} 13. Bc3 {[%clk 0:02:44.1]} 13... Nc6 {[%clk 0:02:22.5]} 14.
Nxc4 {[%clk 0:02:42.9]} 14... Nd5 {[%clk 0:02:16.1]} 15. Bb2 {[%clk 0:02:29.2]}
15... Rfd8 {[%clk 0:02:10.7]} 16. Nd6 {[%clk 0:02:06.2]} 16... Rab8 {[%clk
0:02:07.1]} 17. Rac1 {[%clk 0:02:04.3]} 17... Nde7 {[%clk 0:01:34.9]} 18. f4
{[%clk 0:01:20.3]} 18... f6 {[%clk 0:01:28.1]} 19. Kf2 {[%clk 0:01:17.1]} 19...
Be8 {[%clk 0:01:27.9]} 20. Nxe8 {[%clk 0:01:15.2]} 20... Rxe8 {[%clk 0:01:26.1]}
21. Rd7 {[%clk 0:01:15.3]} 21... Kf7 {[%clk 0:01:18.8]} 22. a4 {[%clk
0:01:13.4]} 22... Red8 {[%clk 0:01:16.3]} 23. Rcd1 {[%clk 0:01:07.9]} 23... Ke8
{[%clk 0:01:09.8]} 24. R7d3 {[%clk 0:01:00.8]} 24... Rxd3 {[%clk 0:01:09.1]} 25.
Rxd3 {[%clk 0:01:01.7]} 25... Rd8 {[%clk 0:01:09.1]} 26. Rb3 {[%clk 0:01:02]}
26... Rd7 {[%clk 0:01:08.9]} 27. g4 {[%clk 0:01:00.5]} 27... Kf7 {[%clk
0:01:08.1]} 28. Ba3 {[%clk 0:00:56.7]} 28... g6 {[%clk 0:01:06.1]} 29. h3 {[%clk
0:00:55.4]} 29... f5 {[%clk 0:01:06.1]} 30. Rc3 {[%clk 0:00:35.5]} 30... Nd5
{[%clk 0:01:04]} 31. Rd3 {[%clk 0:00:33.2]} 31... Nb6 {[%clk 0:00:57.7]} 32.
Rxd7+ {[%clk 0:00:28.4]} 32... Nxd7 {[%clk 0:00:58.6]} 33. e4 {[%clk 0:00:28.8]}
33... a6 {[%clk 0:00:57.8]} 34. exf5 {[%clk 0:00:25.5]} 34... gxf5 {[%clk
0:00:54.1]} 35. g5 {[%clk 0:00:18.4]} 35... Ne7 {[%clk 0:00:54]} 36. Bxb7 {[%clk
0:00:16.5]} 36... a5 {[%clk 0:00:53.9]} 37. Ba6 {[%clk 0:00:14]} 37... Nd5
{[%clk 0:00:53.4]} 38. Bb5 {[%clk 0:00:13.9]} 38... N7b6 {[%clk 0:00:52.1]} 39.
Kf3 {[%clk 0:00:14.1]} 39... Nc3 {[%clk 0:00:49.7]} 40. Bc1 {[%clk 0:00:12.5]}
40... Nxa2 {[%clk 0:00:47.6]} 41. Bd2 {[%clk 0:00:12.1]} 41... Nb4 {[%clk
0:00:47]} 42. h4 {[%clk 0:00:12]} 42... N6d5 {[%clk 0:00:43.5]} 43. Ke2 {[%clk
0:00:12.1]} 43... Nc7 {[%clk 0:00:43.5]} 44. Bc4 {[%clk 0:00:11.3]} 44... Ke7
{[%clk 0:00:40.2]} 45. Bxb4+ {[%clk 0:00:11.2]} 45... axb4 {[%clk 0:00:40]} 46.
a5 {[%clk 0:00:12.1]} 46... Kd6 {[%clk 0:00:36.7]} 47. h5 {[%clk 0:00:12.1]}
47... Kc5 {[%clk 0:00:34.5]} 48. g6 {[%clk 0:00:11.7]} 48... hxg6 {[%clk
0:00:34]} 49. h6 {[%clk 0:00:11.6]} 49... Kxc4 {[%clk 0:00:33.5]} 50. h7 {[%clk
0:00:10.9]} 50... b3 {[%clk 0:00:34]} 51. h8=Q {[%clk 0:00:10.8]} 51... Nb5
{[%clk 0:00:34.8]} 52. Qb2 {[%clk 0:00:09.8]} 52... Nd4+ {[%clk 0:00:30.8]} 53.
Kd1 {[%clk 0:00:08.2]} 53... g5 {[%clk 0:00:30.4]} 54. a6 {[%clk 0:00:07]} 54...
gxf4 {[%clk 0:00:30.2]} 55. a7 {[%clk 0:00:06.7]} 55... f3 {[%clk 0:00:30.3]}
56. a8=Q {[%clk 0:00:06.5]} 56... f2 {[%clk 0:00:30.5]} 57. Qc8+ {[%clk
0:00:07.4]} 57... Kd3 {[%clk 0:00:29.1]} 58. Qxf2 {[%clk 0:00:08.3]} 58... e5
{[%clk 0:00:28.6]} 59. Qd2+ {[%clk 0:00:08]} 59... Ke4 {[%clk 0:00:28.2]} 60.
Qb7+ {[%clk 0:00:08.9]} 1-0

[Event "*** Titled Tuesday Blitz"]
[Site "Chess.com"]
[Date "2020.04.14"]
[Round "2"]
[White "AlleyOoper"]
[Black "IMTominho"]
[Result "0-1"]
[WhiteElo "2575"]
[BlackElo "2847"]
[TimeControl "180+1"]
[EndTime "10:18:36 PDT"]
[Termination "IMTominho won by resignation"]

1. d4 {[%clk 0:03:00.9]} 1... d5 {[%clk 0:02:56.9]} 2. Bf4 {[%clk 0:03:01.3]}
2... Nf6 {[%clk 0:02:56.5]} 3. e3 {[%clk 0:03:01.7]} 3... c5 {[%clk 0:02:54.6]}
4. Nf3 {[%clk 0:03:01.8]} 4... Nc6 {[%clk 0:02:50.8]} 5. Nbd2 {[%clk 0:03:01.1]}
5... e6 {[%clk 0:02:47.7]} 6. c3 {[%clk 0:02:59.4]} 6... Bd6 {[%clk 0:02:47.5]}
7. Bg3 {[%clk 0:02:58.9]} 7... O-O {[%clk 0:02:47.2]} 8. Bd3 {[%clk 0:02:59]}
8... b6 {[%clk 0:02:46.3]} 9. Qe2 {[%clk 0:02:59.2]} 9... Bb7 {[%clk 0:02:43.8]}
10. Rd1 {[%clk 0:02:59.2]} 10... Qc7 {[%clk 0:02:44.1]} 11. e4 {[%clk
0:02:54.2]} 11... dxe4 {[%clk 0:02:25.7]} 12. Nxe4 {[%clk 0:02:40.5]} 12... Nxe4
{[%clk 0:02:23.6]} 13. Qxe4 {[%clk 0:02:36.2]} 13... g6 {[%clk 0:02:22]} 14.
dxc5 {[%clk 0:02:12.7]} 14... bxc5 {[%clk 0:02:16.7]} 15. Bxd6 {[%clk
0:01:36.9]} 15... Qxd6 {[%clk 0:02:17.6]} 16. Ba6 {[%clk 0:01:29.4]} 16... Qc7
{[%clk 0:02:13.7]} 17. Bxb7 {[%clk 0:01:28.1]} 17... Qxb7 {[%clk 0:02:14.6]} 18.
Ne5 {[%clk 0:01:22.9]} 18... Rac8 {[%clk 0:02:07.8]} 19. Rd7 {[%clk 0:01:03.5]}
19... Qb5 {[%clk 0:01:38.3]} 20. a4 {[%clk 0:00:49]} 20... Qxb2 {[%clk
0:01:02.9]} 21. Nxc6 {[%clk 0:00:48.5]} 21... Qxc3+ {[%clk 0:00:59.9]} 22. Ke2
{[%clk 0:00:47.4]} 22... Qb2+ {[%clk 0:00:48.8]} 23. Rd2 {[%clk 0:00:44.1]}
23... Qb7 {[%clk 0:00:48.6]} 24. Rd6 {[%clk 0:00:40.3]} 24... Qb2+ {[%clk
0:00:31.9]} 25. Ke3 {[%clk 0:00:30.7]} 25... Qc3+ {[%clk 0:00:18.9]} 26. Rd3
{[%clk 0:00:29.2]} 26... Qf6 {[%clk 0:00:18.8]} 27. Rc1 {[%clk 0:00:21]} 27...
Qg5+ {[%clk 0:00:12.5]} 28. f4 {[%clk 0:00:20.8]} 28... Qh4 {[%clk 0:00:12.5]}
29. g3 {[%clk 0:00:18.7]} 29... Qxh2 {[%clk 0:00:12.2]} 30. Ne7+ {[%clk
0:00:18.8]} 30... Kg7 {[%clk 0:00:12.7]} 31. Nxc8 {[%clk 0:00:19.1]} 31... Qxg3+
{[%clk 0:00:13.2]} 32. Kd2 {[%clk 0:00:18.8]} 32... Qf2+ {[%clk 0:00:13.1]} 33.
Qe2 {[%clk 0:00:15.9]} 33... Qxf4+ {[%clk 0:00:12.9]} 34. Qe3 {[%clk 0:00:16.1]}
34... Qb4+ {[%clk 0:00:13.1]} 35. Ke2 {[%clk 0:00:13.4]} 35... Rxc8 {[%clk
0:00:14]} 36. Qe5+ {[%clk 0:00:13.6]} 36... Kg8 {[%clk 0:00:13.7]} 37. Rc2
{[%clk 0:00:11.3]} 37... Qg4+ {[%clk 0:00:12.2]} 38. Kd2 {[%clk 0:00:11.8]}
38... c4 {[%clk 0:00:11.5]} 39. Rd4 {[%clk 0:00:12.3]} 39... Qg2+ {[%clk
0:00:11.3]} 40. Kc3 {[%clk 0:00:12.4]} 40... Qf3+ {[%clk 0:00:11.8]} 41. Kd2
{[%clk 0:00:11.5]} 41... Qf2+ {[%clk 0:00:11.2]} 42. Kc3 {[%clk 0:00:10.3]}
42... Qf3+ {[%clk 0:00:11.1]} 43. Kd2 {[%clk 0:00:10.7]} 43... c3+ {[%clk
0:00:11.7]} 44. Ke1 {[%clk 0:00:08.6]} 44... Qh1+ {[%clk 0:00:09.7]} 45. Ke2
{[%clk 0:00:09.1]} 45... Qg2+ {[%clk 0:00:09.8]} 46. Kd3 {[%clk 0:00:09.6]}
46... Qf1+ {[%clk 0:00:09.4]} 47. Qe2 {[%clk 0:00:09.6]} 47... Qf5+ {[%clk
0:00:09.7]} 48. Qe4 {[%clk 0:00:09.8]} 48... Qf1+ {[%clk 0:00:09.8]} 49. Qe2
{[%clk 0:00:10]} 49... Qh3+ {[%clk 0:00:09.8]} 50. Qe3 {[%clk 0:00:10.2]} 50...
Qf5+ {[%clk 0:00:08.8]} 51. Qe4 {[%clk 0:00:10.6]} 51... Qh5 {[%clk 0:00:09.3]}
52. Rxc3 {[%clk 0:00:10.2]} 52... Qd1+ {[%clk 0:00:09.1]} 53. Ke3 {[%clk
0:00:09]} 53... Rxc3+ {[%clk 0:00:09.2]} 54. Kf4 {[%clk 0:00:09.6]} 54... Qf1+
{[%clk 0:00:06.5]} 55. Ke5 {[%clk 0:00:07.2]} 55... Kg7 {[%clk 0:00:06.9]} 56.
Kd6 {[%clk 0:00:07]} 56... Qf6 {[%clk 0:00:06.9]} 57. Kd7 {[%clk 0:00:06.5]}
57... a5 {[%clk 0:00:06.8]} 58. Rd6 {[%clk 0:00:06.5]} 58... Rc5 {[%clk
0:00:06.8]} 59. Qd3 {[%clk 0:00:04.4]} 59... Rd5 {[%clk 0:00:06.9]} 60. Rxd5
{[%clk 0:00:04.5]} 60... exd5 {[%clk 0:00:07.8]} 61. Qxd5 {[%clk 0:00:04.8]}
61... Qf5+ {[%clk 0:00:08.3]} 62. Qxf5 {[%clk 0:00:04.6]} 62... gxf5 {[%clk
0:00:09.2]} 0-1

[Event "*** Titled Tuesday Blitz"]
[Site "Chess.com"]
[Date "2020.04.14"]
[Round "2"]
[White "LiamVrolijk"]
[Black "ChessicallyInclined"]
[Result "0-1"]
[WhiteElo "2791"]
[BlackElo "2577"]
[TimeControl "180+1"]
[EndTime "10:18:36 PDT"]
[Termination "ChessicallyInclined won on time"]

1. d4 {[%clk 0:02:49.3]} 1... Nf6 {[%clk 0:02:59.8]} 2. c4 {[%clk 0:02:49.4]}
2... e6 {[%clk 0:03:00]} 3. Nf3 {[%clk 0:02:49]} 3... b6 {[%clk 0:03:00]} 4. g3
{[%clk 0:02:49.1]} 4... Ba6 {[%clk 0:03:00.3]} 5. b3 {[%clk 0:02:48.5]} 5...
Bb4+ {[%clk 0:02:59.7]} 6. Bd2 {[%clk 0:02:48.4]} 6... Be7 {[%clk 0:03:00.1]} 7.
Nc3 {[%clk 0:02:48.7]} 7... d5 {[%clk 0:03:00.5]} 8. cxd5 {[%clk 0:02:49.6]}
8... exd5 {[%clk 0:03:01.4]} 9. Bg2 {[%clk 0:02:50.2]} 9... O-O {[%clk
0:03:01.8]} 10. O-O {[%clk 0:02:50.3]} 10... Re8 {[%clk 0:03:02.3]} 11. Qc2
{[%clk 0:02:47.8]} 11... Bb4 {[%clk 0:02:59.6]} 12. Rfe1 {[%clk 0:02:46.1]}
12... Nbd7 {[%clk 0:02:55.2]} 13. a3 {[%clk 0:02:42.1]} 13... Bd6 {[%clk
0:02:49.8]} 14. Bg5 {[%clk 0:02:34.7]} 14... h6 {[%clk 0:02:46.3]} 15. Bxf6
{[%clk 0:02:32.7]} 15... Nxf6 {[%clk 0:02:47.2]} 16. e3 {[%clk 0:02:28.7]} 16...
Qd7 {[%clk 0:02:36.3]} 17. b4 {[%clk 0:02:18.9]} 17... Bb7 {[%clk 0:02:33.1]}
18. Rec1 {[%clk 0:02:07]} 18... a6 {[%clk 0:02:13.3]} 19. Ne1 {[%clk 0:02:05.6]}
19... Rac8 {[%clk 0:02:06.9]} 20. Qb3 {[%clk 0:02:03.7]} 20... Qe6 {[%clk
0:01:54.9]} 21. Nd3 {[%clk 0:01:58.3]} 21... Ne4 {[%clk 0:01:46.3]} 22. Nxe4
{[%clk 0:01:53.9]} 22... dxe4 {[%clk 0:01:45.2]} 23. Qxe6 {[%clk 0:01:54.8]}
23... Rxe6 {[%clk 0:01:44.2]} 24. Nb2 {[%clk 0:01:53.3]} 24... c5 {[%clk
0:01:29.7]} 25. bxc5 {[%clk 0:01:43.2]} 25... bxc5 {[%clk 0:01:29.1]} 26. Bh3
{[%clk 0:01:44.1]} 26... cxd4 {[%clk 0:01:21.5]} 27. Bxe6 {[%clk 0:01:43.9]}
27... fxe6 {[%clk 0:01:21]} 28. Rxc8+ {[%clk 0:01:43.9]} 28... Bxc8 {[%clk
0:01:21.5]} 29. exd4 {[%clk 0:01:40.8]} 29... Bb7 {[%clk 0:01:19.1]} 30. Nc4
{[%clk 0:01:39.6]} 30... Be7 {[%clk 0:01:18]} 31. a4 {[%clk 0:01:34.4]} 31...
Bd5 {[%clk 0:01:12.6]} 32. Ne5 {[%clk 0:01:27.1]} 32... Bb4 {[%clk 0:01:10.1]}
33. Rc1 {[%clk 0:01:13.1]} 33... a5 {[%clk 0:00:50.1]} 34. Nc6 {[%clk
0:01:12.9]} 34... Bd2 {[%clk 0:00:49.8]} 35. Rc2 {[%clk 0:01:06.5]} 35... e3
{[%clk 0:00:48.9]} 36. Kf1 {[%clk 0:00:54.3]} 36... Bb3 {[%clk 0:00:37.6]} 37.
Ne7+ {[%clk 0:00:45.4]} 37... Kf7 {[%clk 0:00:30.5]} 38. Rc7 {[%clk 0:00:44.7]}
38... Bxa4 {[%clk 0:00:28]} 39. fxe3 {[%clk 0:00:32.6]} 39... Bd1 {[%clk
0:00:21.2]} 40. Kf2 {[%clk 0:00:27.9]} 40... a4 {[%clk 0:00:20.5]} 41. Ra7
{[%clk 0:00:22.7]} 41... Bb3 {[%clk 0:00:18]} 42. Nd5+ {[%clk 0:00:22]} 42...
Kg6 {[%clk 0:00:11]} 43. Nb6 {[%clk 0:00:22.2]} 43... Kf5 {[%clk 0:00:10.6]} 44.
Nxa4 {[%clk 0:00:18.4]} 44... Bd5 {[%clk 0:00:09.4]} 45. Nc5 {[%clk 0:00:17.5]}
45... g5 {[%clk 0:00:08.6]} 46. h3 {[%clk 0:00:15.5]} 46... Kg6 {[%clk
0:00:06.3]} 47. Ra6 {[%clk 0:00:14.9]} 47... Kf5 {[%clk 0:00:04.7]} 48. g4+
{[%clk 0:00:14.8]} 48... Kf6 {[%clk 0:00:05.1]} 49. e4 {[%clk 0:00:14.3]} 49...
Bc4 {[%clk 0:00:05.2]} 50. Ra4 {[%clk 0:00:13.9]} 50... Bb5 {[%clk 0:00:04.7]}
51. e5+ {[%clk 0:00:14.3]} 51... Kf7 {[%clk 0:00:04.2]} 52. Rb4 {[%clk
0:00:15.2]} 52... Bxb4 {[%clk 0:00:03.7]} 53. Ne4 {[%clk 0:00:12.5]} 53... Bc6
{[%clk 0:00:03.4]} 54. Ke3 {[%clk 0:00:13.4]} 54... Bd5 {[%clk 0:00:02.9]} 55.
Kf2 {[%clk 0:00:14.3]} 55... Bxe4 {[%clk 0:00:02.7]} 56. h4 {[%clk 0:00:10.6]}
56... Bd5 {[%clk 0:00:03.6]} 57. h5 {[%clk 0:00:11.5]} 57... Ke7 {[%clk
0:00:03.8]} 58. Ke3 {[%clk 0:00:12.4]} 58... Kd7 {[%clk 0:00:04.5]} 59. Kd3
{[%clk 0:00:12.7]} 59... Kc6 {[%clk 0:00:05.2]} 60. Kc2 {[%clk 0:00:13.6]} 60...
Kb5 {[%clk 0:00:05.8]} 0-1